[Event "34rd NATO Championship 2024"]
[Site "Rhodes"]
[Date "2024.10.24"]
[Round "5.34"]
[White "Kapsomenakis, Petros"]
[Black "Coulon, Dominic"]
[Result "1-0"]
[ECO "A46"]
[WhiteElo "1914"]
[BlackElo "1813"]
[Annotator "RC"]
[PlyCount "82"]
[EventDate "2024.09.18"]
[EventType "swiss"]
[EventCountry "GRE"]
[SourceTitle "playchess.com"]
[Source "ChessBase"]
[SourceQuality "1"]
[TimeControl "5400+30"]

1. d4 {[%emt 0:00:03]} c5 {[%emt 0:00:08]} 2. c3 {[%emt 0:00:12]} cxd4 {[%emt 0:01:07]} 3. cxd4 {[%emt 0:00:02]} Nf6 {[%emt 0:00:18]} 4. Nf3 {[%emt 0:00:29]} d6 {[%emt 0:01:25]} 5. h3 {[%emt 0:02:48]} Qb6 {[%emt 0:03:51]} 6. Qc2 {[%emt 0:01:30]} Nc6 {[%emt 0:01:37]} 7. e3 {[%emt 0:02:04]} g6 {[%emt 0:04:58]} 8. Nbd2 {[%emt 0:03:04]} d5 {[%emt 0:04:53]} 9. a3 {[%emt 0:02:32]} Bg7 {[%emt 0:02:51]} 10. Bd3 {[%emt 0:04:26]} O-O {[%emt 0:00:22]} 11. O-O {[%emt 0:01:12]} Ne8 {[%emt 0:05:15]} 12. Rb1 {[%emt 0:02:01]} e5 {[%emt 0:12:05]} 13. dxe5 {[%emt 0:00:08]} Nxe5 {[%emt 0:00:06]} 14. Nxe5 {[%emt 0:00:15]} Bxe5 {[%emt 0:00:05]} 15. Nf3 {[%emt 0:00:08]} Bg7 {[%emt 0:02:52]} 16. Bd2 {[%emt 0:00:41]} Be6 {[%emt 0:00:38]} 17. Bc3 {[%emt 0:03:52]} Rc8 {[%emt 0:02:17]} 18. Nd4 {[%emt 0:01:32]} Nd6 {[%emt 0:04:37]} 19. Qe2 {[%emt 0:04:58]} Ne4 {[%emt 0:01:03]} 20. Nxe6 {[%emt 0:11:59]} Qxe6 {[%emt 0:11:55]} 21. Bb4 {[%emt 0:07:31]} Rfd8 {[%emt 0:03:30]} 22. Rbc1 {[%emt 0:05:38]} Nd6 {[%emt 0:07:17]} 23. Rfd1 {[%emt 0:06:22]} Ne4 {[%emt 0:04:11]} 24. Bb1 {[%emt 0:04:54]} Rc6 {[%emt 0:02:30]} 25. f3 {[%emt 0:09:57]} Ng3 {[%emt 0:00:44]} 26. Qf2 {[%emt 0:00:19]} Rxc1 {[%emt 0:01:15]} 27. Rxc1 {[%emt 0:00:04]} Nf5 {[%emt 0:01:37]} 28. Bxf5 {[%emt 0:06:33]} Qxf5 {[%emt 0:00:44]} 29. Qc2 {[%emt 0:02:53]} Qe5 {[%emt 0:00:52]} 30. Kf2 {[%emt 0:08:56]} Bf6 {[%emt 0:00:47]} 31. g3 {[%emt 0:02:55]} d4 {[%emt 0:00:55]} 32. e4 {[%emt 0:03:46]} d3 {[%emt 0:00:18]} 33. Qd2 {[%emt 0:01:33]} Qd4+ {[%emt 0:00:53]} 34. Kg2 {[%emt 0:01:00]} Qxb2 {[%emt 0:02:17]} 35. Qxb2 {[%emt 0:01:02]} Bxb2 {[%emt 0:00:04]} 36. Rd1 {[%emt 0:00:08]} b6 {[%emt 0:01:32]} 37. Rd2 {[%emt 0:00:55]} Be5 {[%emt 0:00:25]} 38. f4 {[%emt 0:00:11]} Bc7 {[%emt 0:00:19]} 39. Kf3 {[%emt 0:00:10]} a5 {[%emt 0:00:10]} 40. Bc3 {[%emt 0:00:10]} b5 {[%emt 0:00:51]} 41. e5 {[%emt 0:00:10]} Rd4 {[%emt 0:17:26]} 1-0

[Event "34rd NATO Championship 2024"]
[Site "Rhodes"]
[Date "2024.10.24"]
[Round "5.36"]
[White "Van de Walle, Rob"]
[Black "Woolf, Ben"]
[Result "1/2-1/2"]
[ECO "A80"]
[WhiteElo "1900"]
[BlackElo "1747"]
[Annotator "RC"]
[PlyCount "89"]
[EventDate "2024.09.18"]
[EventType "swiss"]
[EventCountry "GRE"]
[SourceTitle "playchess.com"]
[Source "ChessBase"]
[SourceQuality "1"]
[TimeControl "5400+30"]

1. d4 e6 {[%emt 1:31:00]} 2. Nf3 {[%emt 0:00:56]} f5 {[%emt 0:00:00]} 3. h3 {[%emt 0:00:40]} Nf6 {[%emt 0:00:00]} 4. g4 {[%emt 1:30:54]} g6 {[%emt 0:00:00]} 5. gxf5 {[%emt 0:00:00]} exf5 {[%emt 0:00:00]} 6. Bf4 {[%emt 0:00:00]} d6 {[%emt 0:00:00]} 7. e3 {[%emt 0:00:00]} Be6 {[%emt 0:00:00]} 8. Bd3 {[%emt 0:00:00]} Nbd7 {[%emt 0:00:00]} 9. Nbd2 {[%emt 0:00:00]} Bg7 {[%emt 0:00:00]} 10. c3 {[%emt 0:00:00]} Qe7 {[%emt 0:00:00]} 11. Qe2 {[%emt 0:00:00]} O-O {[%emt 0:00:00]} 12. Kd1 {[%emt 0:00:00]} Rae8 {[%emt 0:00:00]} 13. Kc2 {[%emt 0:00:00]} c5 {[%emt 0:00:00]} 14. dxc5 {[%emt 0:00:00]} Nxc5 {[%emt 0:00:00]} 15. Nc4 {[%emt 0:00:00]} Nxd3 {[%emt 0:00:00]} 16. Qxd3 {[%emt 0:00:00]} Bxc4 {[%emt 0:00:00]} 17. Qxc4+ {[%emt 0:00:00]} d5 {[%emt 0:00:00]} 18. Qe2 {[%emt 0:00:00]} Qe4+ {[%emt 0:00:00]} 19. Kd2 {[%emt 0:00:00]} Qa4 {[%emt 0:00:00]} 20. Qd3 {[%emt 0:00:00]} Ne4+ {[%emt 0:00:00]} 21. Ke2 {[%emt 0:00:00]} Qc4 {[%emt 0:00:00]} 22. Qxc4 {[%emt 0:00:00]} dxc4 {[%emt 0:00:00]} 23. h4 {[%emt 0:00:00]} b5 {[%emt 0:00:00]} 24. Nd4 {[%emt 0:00:33]} Bxd4 {[%emt 0:00:00]} 25. cxd4 {[%emt 0:00:17]} c3 {[%emt 0:00:00]} 26. bxc3 {[%emt 0:00:33]} Nxc3+ {[%emt 0:00:00]} 27. Kd3 {[%emt 0:00:45]} Nd5 {[%emt 0:00:00]} 28. Be5 {[%emt 0:02:10]} Rc8 {[%emt 0:00:00]} 29. Rhc1 {[%emt 0:00:31]} a6 {[%emt 0:00:47]} 30. a3 {[%emt 0:00:21]} Kf7 {[%emt 0:00:49]} 31. Bd6 {[%emt 0:04:14]} Rfe8 {[%emt 0:00:40]} 32. Rc5 {[%emt 0:00:30]} Nb6 {[%emt 0:01:54]} 33. Rac1 {[%emt 0:00:57]} Nc4 {[%emt 0:00:15]} 34. Rxc8 {[%emt 0:00:07]} Rxc8 {[%emt 0:00:08]} 35. Bb4 {[%emt 0:00:37]} Ke6 {[%emt 0:00:32]} 36. Rc2 {[%emt 0:00:53]} Kd5 {[%emt 0:00:43]} 37. f3 {[%emt 0:00:12]} Re8 {[%emt 0:00:56]} 38. Re2 {[%emt 0:00:54]} Nd6 {[%emt 0:02:34]} 39. Bxd6 {[%emt 0:00:25]} Kxd6 {[%emt 0:00:08]} 40. Rc2 {[%emt 0:00:45]} Re7 {[%emt 0:00:50]} 41. e4 {[%emt 0:01:06]} fxe4+ {[%emt 0:01:27]} 42. fxe4 {[%emt 0:00:02]} Rc7 {[%emt 0:01:39]} 43. Rf2 {[%emt 0:00:01]} Ke7 {[%emt 0:00:16]} 44. Rg2 {[%emt 0:00:42]} Rc4 {[%emt 0:01:17]} 45. Ra2 {[%emt 0:03:55]} 1/2-1/2

[Event "34rd NATO Championship 2024"]
[Site "Rhodes"]
[Date "2024.10.24"]
[Round "5.38"]
[White "Tikerpuu, Mati"]
[Black "Stuhr, Finn"]
[Result "1-0"]
[ECO "C22"]
[WhiteElo "1933"]
[BlackElo "1790"]
[Annotator "RC"]
[PlyCount "95"]
[EventDate "2024.09.18"]
[EventType "swiss"]
[EventCountry "GRE"]
[SourceTitle "playchess.com"]
[Source "ChessBase"]
[SourceQuality "1"]
[TimeControl "5400+30"]

1. e4 {[%emt 0:00:03]} e5 {[%emt 0:00:08]} 2. d4 {[%emt 0:00:06]} exd4 {[%emt 0:00:53]} 3. Qxd4 {[%emt 0:00:05]} Nc6 {[%emt 0:00:11]} 4. Qe3 {[%emt 0:00:05]} b6 {[%emt 0:00:32]} 5. Nc3 {[%emt 0:00:26]} Bc5 {[%emt 0:00:11]} 6. Qg3 {[%emt 0:01:59]} Nf6 {[%emt 0:05:18]} 7. Bd3 {[%emt 0:13:48]} d6 {[%emt 0:02:07]} 8. Na4 {[%emt 0:15:13]} Bd4 {[%emt 0:00:53]} 9. c3 {[%emt 0:01:54]} Be5 {[%emt 0:00:09]} 10. f4 {[%emt 0:00:33]} Nh5 {[%emt 0:00:33]} 11. Qf3 {[%emt 0:02:47]} Nxf4 {[%emt 0:01:33]} 12. Bxf4 {[%emt 0:01:36]} Bd7 {[%emt 0:00:08]} 13. b3 {[%emt 0:09:27]} Qe7 {[%emt 0:01:47]} 14. Ne2 {[%emt 0:02:56]} Qh4+ {[%emt 0:06:50]} 15. Bg3 {[%emt 0:06:08]} Qg5 {[%emt 0:00:16]} 16. O-O {[%emt 0:06:35]} O-O-O {[%emt 0:00:17]} 17. Ba6+ {[%emt 0:01:45]} Kb8 {[%emt 0:00:02]} 18. Bxe5 {[%emt 0:04:26]} Nxe5 {[%emt 0:00:47]} 19. Qf4 {[%emt 0:02:41]} Qh5 {[%emt 0:02:23]} 20. Ng3 {[%emt 0:02:05]} Qg6 {[%emt 0:00:19]} 21. Nb2 {[%emt 0:00:52]} b5 {[%emt 0:05:01]} 22. a4 {[%emt 0:01:39]} c6 {[%emt 0:01:01]} 23. axb5 {[%emt 0:01:07]} cxb5 {[%emt 1:10:41]} 24. c4 {[%emt 0:24:14]} Qe6 {[%emt 0:00:00]} 25. Qe3 {[%emt 0:00:00]} Qe7 {[%emt 0:00:00]} 26. cxb5 {[%emt 0:00:00]} Be6 {[%emt 0:00:00]} 27. b6 {[%emt 0:00:00]} Rd7 {[%emt 0:00:00]} 28. bxa7+ {[%emt 0:00:00]} Rxa7 {[%emt 0:00:00]} 29. Bc4 {[%emt 0:02:30]} Nc6 {[%emt 0:00:00]} 30. Rxa7 {[%emt 0:00:00]} Qxa7 {[%emt 0:00:00]} 31. Qxa7+ {[%emt 0:00:00]} Nxa7 {[%emt 0:00:00]} 32. Bxe6 {[%emt 0:00:00]} fxe6 {[%emt 0:00:00]} 33. Rf7 {[%emt 0:00:00]} g6 {[%emt 0:00:00]} 34. Re7 {[%emt 0:00:00]} e5 {[%emt 0:00:00]} 35. Nc4 {[%emt 0:00:00]} Nb5 {[%emt 0:00:00]} 36. Kf2 {[%emt 0:00:00]} Kc8 {[%emt 0:00:00]} 37. Ke3 {[%emt 0:00:00]} h5 {[%emt 0:00:00]} 38. Rg7 {[%emt 0:00:00]} Rh6 {[%emt 0:00:00]} 39. Ne2 {[%emt 0:00:00]} h4 {[%emt 0:00:00]} 40. Kd3 {[%emt 0:00:00]} h3 {[%emt 0:00:00]} 41. g3 {[%emt 0:00:00]} Rh8 {[%emt 0:00:00]} 42. Rxg6 {[%emt 0:00:00]} Kc7 {[%emt 0:00:00]} 43. Nc3 {[%emt 0:00:00]} Nd4 {[%emt 0:00:00]} 44. Nd5+ {[%emt 0:00:00]} Kb7 {[%emt 0:00:00]} 45. Nxd6+ {[%emt 0:00:00]} Kb8 {[%emt 0:00:00]} 46. Rg7 {[%emt 0:00:00]} Nf3 {[%emt 0:00:00]} 47. Rb7+ {[%emt 0:00:00]} Ka8 {[%emt 0:00:00]} 48. Nb6# {[%emt 0:00:00]} 1-0

[Event "34rd NATO Championship 2024"]
[Site "Rhodes"]
[Date "2024.10.24"]
[Round "5.39"]
[White "Anghel, Iulian-Mihai"]
[Black "Hater, David"]
[Result "1-0"]
[ECO "C28"]
[WhiteElo "2164"]
[BlackElo "1922"]
[Annotator "RC"]
[PlyCount "31"]
[EventDate "2024.09.18"]
[EventType "swiss"]
[EventCountry "GRE"]
[SourceTitle "playchess.com"]
[Source "ChessBase"]
[SourceQuality "1"]
[TimeControl "5400+30"]

1. e4 {[%emt 0:00:02]} e5 {[%emt 0:00:06]} 2. Bc4 {[%emt 0:00:07]} Nc6 {[%emt 0:00:13]} 3. Nc3 {[%emt 0:00:30]} Nf6 {[%emt 0:00:41]} 4. d3 {[%emt 0:00:07]} Na5 {[%emt 0:04:24]} 5. Bg5 {[%emt 0:11:23]} Nxc4 {[%emt 0:04:49]} 6. dxc4 {[%emt 0:00:04]} h6 {[%emt 0:00:16]} 7. Bh4 {[%emt 0:00:37]} Be7 {[%emt 0:01:38]} 8. Qd3 {[%emt 0:07:25]} d6 {[%emt 0:03:23]} 9. O-O-O {[%emt 0:13:05]} g5 {[%emt 0:06:29]} 10. Bg3 {[%emt 0:03:15]} Bg4 {[%emt 0:03:06]} 11. f3 {[%emt 0:03:33]} Be6 {[%emt 0:00:43]} 12. c5 {[%emt 0:07:40]} Nh5 {[%emt 0:02:33]} 13. Qb5+ {[%emt 0:13:30]} Qd7 {[%emt 0:01:33]} 14. Bxe5 {[%emt 0:03:39]} Qxb5 {[%emt 0:03:05]} 15. Nxb5 {[%emt 0:00:03]} dxe5 {[%emt 0:00:05]} 16. Nxc7+ {[%emt 0:00:11]} 1-0

[Event "34rd NATO Championship 2024"]
[Site "Rhodes"]
[Date "2024.10.24"]
[Round "5.40"]
[White "Ulusoy, Mustafa"]
[Black "Tucker, David S"]
[Result "1/2-1/2"]
[ECO "E61"]
[WhiteElo "1785"]
[BlackElo "1921"]
[Annotator "RC"]
[PlyCount "44"]
[EventDate "2024.09.18"]
[EventType "swiss"]
[EventCountry "GRE"]
[SourceTitle "playchess.com"]
[Source "ChessBase"]
[SourceQuality "1"]
[TimeControl "5400+30"]

1. d4 {[%emt 0:00:03]} c5 {[%emt 0:00:15]} 2. Nf3 {[%emt 0:00:41]} Nf6 {[%emt 0:00:31]} 3. e3 {[%emt 0:04:28]} g6 {[%emt 0:00:34]} 4. c4 {[%emt 0:01:21]} Bg7 {[%emt 0:00:47]} 5. Nc3 {[%emt 0:00:16]} O-O {[%emt 0:03:03]} 6. Be2 {[%emt 0:01:32]} b6 {[%emt 0:05:17]} 7. O-O {[%emt 0:01:39]} Bb7 {[%emt 0:01:34]} 8. d5 {[%emt 0:01:55]} d6 {[%emt 0:00:32]} 9. Re1 {[%emt 0:02:41]} Nbd7 {[%emt 0:03:26]} 10. Nd2 {[%emt 0:01:38]} Re8 {[%emt 0:02:11]} 11. Nde4 {[%emt 0:04:01]} a6 {[%emt 0:02:42]} 12. Qc2 {[%emt 0:02:48]} Qc7 {[%emt 0:14:53]} 13. Bd2 {[%emt 0:07:35]} e6 {[%emt 0:12:31]} 14. Nxf6+ {[%emt 0:06:31]} Nxf6 {[%emt 0:00:32]} 15. e4 {[%emt 0:00:44]} exd5 {[%emt 0:02:28]} 16. exd5 {[%emt 0:02:54]} Re7 {[%emt 0:01:09]} 17. Bd3 {[%emt 0:02:31]} Rae8 {[%emt 0:00:14]} 18. Rxe7 {[%emt 0:01:14]} Rxe7 {[%emt 0:00:15]} 19. Re1 {[%emt 0:02:07]} Rxe1+ {[%emt 0:05:00]} 20. Bxe1 {[%emt 0:00:17]} Qe7 {[%emt 0:00:20]} 21. Qe2 {[%emt 0:05:55]} Qd7 {[%emt 0:07:23]} 22. f3 {[%emt 0:01:54]} Kf8 {[%emt 0:00:59]} 1/2-1/2

[Event "34rd NATO Championship 2024"]
[Site "Rhodes"]
[Date "2024.10.24"]
[Round "5.41"]
[White "O`Byrne, Daniel"]
[Black "Skaburskis, Martynas"]
[Result "1/2-1/2"]
[ECO "B13"]
[WhiteElo "1748"]
[BlackElo "1893"]
[Annotator "NA COMBH"]
[PlyCount "65"]
[EventDate "2024.09.18"]
[EventType "swiss"]
[EventCountry "GRE"]
[SourceTitle "playchess.com"]
[Source "ChessBase"]
[SourceQuality "1"]
[TimeControl "5400+30"]

1. e4 {[%emt 0:00:03]} c6 {[%emt 0:00:09]} 2. Nc3 {[%emt 0:00:31]} d5 {[%emt 0:01:11]} 3. exd5 {[%emt 0:00:12]} cxd5 {[%emt 0:00:08]} 4. Nf3 {[%emt 0:00:26]} Nc6 {[%emt 0:00:38]} 5. d4 {[%emt 0:00:46]} Bg4 {[%emt 0:01:47]} 6. Be2 {[%emt 0:00:51]} Nf6 {[%emt 0:00:31]} 7. O-O {[%emt 0:00:59]} e6 {[%emt 0:00:30]} 8. Bf4 {[%emt 0:00:16]} Bxf3 {[%emt 0:02:10]} 9. Bxf3 {[%emt 0:00:13]} Bd6 {[%emt 0:00:10]} 10. Bxd6 {[%emt 0:00:37]} Qxd6 {[%emt 0:00:03]} 11. Re1 {[%emt 0:02:15]} O-O {[%emt 0:01:18]} 12. a3 {[%emt 0:04:28]} a6 {[%emt 0:00:40]} 13. Qd2 {[%emt 0:02:38]} Ne7 {[%emt 0:06:23]} 14. h3 {[%emt 0:02:25]} Rac8 {[%emt 0:01:26]} 15. Rad1 {[%emt 0:06:42]} Qb6 {[%emt 0:10:35]} 16. Rb1 {[%emt 0:10:43]} Rc4 {[%emt 0:04:56]} 17. Ne2 {[%emt 0:03:13]} Ng6 {[%emt 0:06:05]} 18. c3 {[%emt 0:02:51]} Qd6 {[%emt 0:03:01]} 19. Qg5 {[%emt 0:01:12]} h6 {[%emt 0:02:07]} 20. Qe3 {[%emt 0:03:14]} Nh4 {[%emt 0:05:07]} 21. g3 {[%emt 0:02:23]} Nxf3+ {[%emt 0:02:39]} 22. Qxf3 {[%emt 0:00:11]} Ne4 {[%emt 0:00:39]} 23. Qd3 {[%emt 0:04:05]} b5 {[%emt 0:05:04]} 24. Kg2 {[%emt 0:00:24]} Qe7 {[%emt 0:01:26]} 25. Nf4 {[%emt 0:00:26]} Qg5 {[%emt 0:02:37]} 26. Rbd1 {[%emt 0:04:03]} Qf5 {[%emt 0:04:50]} 27. f3 {[%emt 0:01:56]} Nd6 {[%emt 0:01:08]} 28. Qd2 {[%emt 0:02:11]} Rc6 {[%emt 0:01:29]} 29. Re5 {[%emt 0:01:12]} Nc4 {[%emt 0:00:48]} 30. Rxf5 {[%emt 0:01:03]} Nxd2 {[%emt 0:00:13]} 31. Re5 {[%emt 0:00:18]} Nc4 {[%emt 0:00:23]} 32. Re2 {[%emt 0:00:32]} Rb8 {[%emt 0:02:51] Check Result:0.00} 33. Nd3 {[%emt 0:00:50]} 1/2-1/2

[Event "34rd NATO Championship 2024"]
[Site "Rhodes"]
[Date "2024.10.24"]
[Round "5.42"]
[White "Dowd, Patrick"]
[Black "Huidiu, Vasile-Cristian"]
[Result "1/2-1/2"]
[ECO "D02"]
[WhiteElo "1885"]
[BlackElo "1729"]
[Annotator "NA COMBH"]
[PlyCount "49"]
[EventDate "2024.09.18"]
[EventType "swiss"]
[EventCountry "GRE"]
[SourceTitle "playchess.com"]
[Source "ChessBase"]
[SourceQuality "1"]
[TimeControl "5400+30"]

1. d4 {[%emt 0:00:05]} Nf6 {[%emt 0:00:10]} 2. Bf4 {[%emt 0:00:07]} e6 {[%emt 0:00:24]} 3. e3 {[%emt 0:00:14]} c5 {[%emt 0:00:36]} 4. c3 {[%emt 0:00:23]} Nc6 {[%emt 0:01:04]} 5. Nf3 {[%emt 0:00:11]} d5 {[%emt 0:01:49]} 6. Nbd2 {[%emt 0:00:41]} Qb6 {[%emt 0:02:51]} 7. Qb3 {[%emt 0:01:34]} c4 {[%emt 0:00:55]} 8. Qc2 {[%emt 0:00:15]} Nh5 {[%emt 0:03:41]} 9. b3 {[%emt 0:05:15]} Nxf4 {[%emt 0:01:22]} 10. exf4 {[%emt 0:00:11]} cxb3 {[%emt 0:03:28]} 11. axb3 {[%emt 0:01:11]} Bd6 {[%emt 0:01:44]} 12. Ne5 {[%emt 0:00:25]} f6 {[%emt 0:01:30]} 13. Nxc6 {[%emt 0:03:01]} bxc6 {[%emt 0:00:53]} 14. g3 {[%emt 0:02:54]} a5 {[%emt 0:04:10]} 15. b4 {[%emt 0:05:02]} Bb7 {[%emt 0:03:31]} 16. bxa5 {[%emt 0:02:21]} Rxa5 {[%emt 0:03:08]} 17. Rb1 {[%emt 0:00:36]} Qa7 {[%emt 0:00:35]} 18. Qb2 {[%emt 0:07:55]} Ba6 {[%emt 0:04:47]} 19. Qb6 {[%emt 0:04:34]} Qxb6 {[%emt 0:02:21]} 20. Rxb6 {[%emt 0:00:09]} Ra1+ {[%emt 0:04:46]} 21. Rb1 {[%emt 0:05:37]} Rxb1+ {[%emt 0:00:50]} 22. Nxb1 {[%emt 0:00:04]} Bxf1 {[%emt 0:00:23]} 23. Rxf1 {[%emt 0:00:25]} c5 {[%emt 0:05:25]} 24. Ke2 {[%emt 0:03:30]} Kd7 {[%emt 0:06:46] Check Result:-0.52} 25. Nd2 {[%emt 0:09:32]} 1/2-1/2

[Event "34rd NATO Championship 2024"]
[Site "Rhodes"]
[Date "2024.10.24"]
[Round "5.43"]
[White "Hater, Andrew"]
[Black "Sherpa, Ngadi"]
[Result "1-0"]
[ECO "B11"]
[WhiteElo "1767"]
[BlackElo "1882"]
[Annotator "NA COMBH"]
[PlyCount "107"]
[EventDate "2024.09.18"]
[EventType "swiss"]
[EventCountry "GRE"]
[SourceTitle "playchess.com"]
[Source "ChessBase"]
[SourceQuality "1"]
[TimeControl "5400+30"]

1. e4 {[%emt 0:00:02]} c6 {[%emt 0:00:09]} 2. Nf3 {[%emt 0:00:08]} d5 {[%emt 0:00:33]} 3. Nc3 {[%emt 0:00:10]} dxe4 {[%emt 0:01:45]} 4. Nxe4 {[%emt 0:00:06]} Bg4 {[%emt 0:02:04]} 5. h3 {[%emt 0:01:17]} Bh5 {[%emt 0:00:15]} 6. Ng3 Bxf3 {[%emt 0:02:28]} 7. Qxf3 {[%emt 0:00:41]} g6 {[%emt 0:01:05]} 8. Bc4 {[%emt 0:00:19]} Nf6 {[%emt 0:00:26]} 9. Qb3 {[%emt 0:00:33]} e6 {[%emt 0:02:46]} 10. Qxb7 {[%emt 0:00:16]} Nbd7 {[%emt 0:00:05]} 11. Qxc6 {[%emt 0:01:17]} Rc8 {[%emt 0:00:10]} 12. Qa4 {[%emt 1:31:41]} Bd6 {[%emt 1:24:44]} 13. Bb5 {[%emt 0:00:30]} O-O {[%emt 0:00:30]} 14. Bxd7 {[%emt 0:00:00]} Nxd7 {[%emt 0:00:30]} 15. Ne4 {[%emt 0:01:00]} Be7 {[%emt 0:00:00]} 16. c3 {[%emt 0:00:30]} Ne5 {[%emt 0:00:00]} 17. d4 {[%emt 0:00:00]} Nd3+ {[%emt 0:00:00]} 18. Ke2 {[%emt 0:00:00]} Nxc1+ {[%emt 0:00:00]} 19. Rhxc1 {[%emt 0:00:00]} Qd5 {[%emt 0:00:00]} 20. f3 {[%emt 0:00:00]} f5 {[%emt 0:00:00]} 21. Nf2 {[%emt 0:00:00]} e5 {[%emt 0:00:00]} 22. Qb3 {[%emt 0:00:00]} Rc4 {[%emt 0:00:00]} 23. Nd3 exd4 {[%emt 0:00:00]} 24. cxd4 Rxd4 {[%emt 0:00:00]} 25. Qxd5+ Rxd5 26. Rd1 {[%emt 0:00:00]} Re8 {[%emt 0:00:00]} 27. Kf1 {[%emt 0:00:00]} Bf6 {[%emt 0:00:00]} 28. Rab1 {[%emt 0:00:00]} Red8 {[%emt 0:00:00]} 29. Ke2 {[%emt 0:00:00]} a5 {[%emt 0:00:00]} 30. b3 {[%emt 0:00:00]} g5 {[%emt 0:00:00]} 31. f4 {[%emt 0:00:00]} Re8+ {[%emt 0:00:00]} 32. Kf3 {[%emt 0:00:00]} h6 {[%emt 0:00:00]} 33. Nf2 {[%emt 0:00:00]} Rc5 {[%emt 0:00:00]} 34. Rbc1 {[%emt 0:00:00]} Rxc1 {[%emt 0:00:00]} 35. Rxc1 {[%emt 0:00:00]} Bd4 {[%emt 0:00:00]} 36. fxg5 {[%emt 0:00:00]} hxg5 {[%emt 0:00:00]} 37. Nd1 {[%emt 0:00:00]} Re1 {[%emt 0:00:00]} 38. g3 {[%emt 0:00:00]} Kf7 {[%emt 0:00:00]} 39. a3 {[%emt 0:00:00]} Ke6 {[%emt 0:00:00]} 40. b4 {[%emt 0:00:00]} axb4 {[%emt 0:00:00]} 41. axb4 {[%emt 0:00:00]} Kd6 {[%emt 0:00:00]} 42. b5 {[%emt 0:00:00]} Kd7 {[%emt 0:00:00]} 43. h4 {[%emt 0:00:00]} gxh4 {[%emt 0:00:00]} 44. gxh4 {[%emt 0:00:00]} Rh1 {[%emt 0:00:00]} 45. Kf4 {[%emt 0:00:00]} Be3+ {[%emt 0:00:00]} 46. Kxe3 {[%emt 0:00:00]} Rxh4 {[%emt 0:00:00]} 47. Nc3 {[%emt 0:00:00]} Kc7 {[%emt 0:00:00]} 48. Rf1 {[%emt 0:00:00]} f4+ {[%emt 0:00:00]} 49. Rxf4 {[%emt 0:00:00]} Rh5 {[%emt 0:00:00]} 50. Kd4 {[%emt 0:00:23]} Kb7 {[%emt 0:00:00]} 51. Nd5 {[%emt 0:00:16]} Rh1 {[%emt 0:00:00]} 52. Rf7+ {[%emt 0:00:31]} Kb8 {[%emt 0:00:00]} 53. Kc5 {[%emt 0:00:26]} Rh6 {[%emt 0:00:00] Check Result:#8} 54. Nf6 {[%emt 0:00:38]} 1-0

[Event "34rd NATO Championship 2024"]
[Site "Rhodes"]
[Date "2024.10.24"]
[Round "5.44"]
[White "Steen, Kris"]
[Black "Kries, Yvon"]
[Result "1/2-1/2"]
[ECO "A01"]
[WhiteElo "1876"]
[BlackElo "1765"]
[Annotator "NA COMBH"]
[PlyCount "45"]
[EventDate "2024.09.18"]
[EventType "swiss"]
[EventCountry "GRE"]
[SourceTitle "playchess.com"]
[Source "ChessBase"]
[SourceQuality "1"]
[TimeControl "5400+30"]

1. b3 {[%emt 0:00:04]} e5 {[%emt 0:00:17]} 2. Bb2 {[%emt 0:00:05]} f6 {[%emt 0:00:49]} 3. e3 {[%emt 0:01:18]} Ne7 {[%emt 0:00:36]} 4. Qh5+ {[%emt 0:03:30]} g6 {[%emt 0:07:45]} 5. Qd1 {[%emt 0:00:01]} d6 {[%emt 0:01:29]} 6. g3 {[%emt 0:00:49]} Bg7 {[%emt 0:01:27]} 7. c4 {[%emt 0:00:23]} Bd7 {[%emt 0:02:37]} 8. Bg2 {[%emt 0:00:23]} Bc6 {[%emt 0:01:24]} 9. Nf3 {[%emt 0:02:31]} Nd7 {[%emt 0:00:47]} 10. O-O {[%emt 0:00:29]} O-O {[%emt 0:01:29]} 11. d3 {[%emt 0:06:40]} Nc5 {[%emt 0:09:08]} 12. Qc2 {[%emt 0:07:50]} Qc8 {[%emt 0:07:40]} 13. Nbd2 {[%emt 0:07:42]} Bd7 {[%emt 0:03:07]} 14. d4 {[%emt 0:03:32]} Ne6 {[%emt 0:02:25]} 15. Rad1 {[%emt 0:05:21]} Nd8 {[%emt 0:02:37]} 16. h4 {[%emt 0:07:25]} Bh3 {[%emt 0:01:42]} 17. d5 {[%emt 0:06:35]} Bxg2 {[%emt 0:00:28]} 18. Kxg2 {[%emt 0:00:01]} Nf7 {[%emt 0:08:09]} 19. e4 {[%emt 0:01:28]} h5 {[%emt 0:06:31]} 20. Bc1 {[%emt 0:03:41]} Qd7 {[%emt 0:01:03]} 21. Nb1 {[%emt 0:03:04]} Rac8 {[%emt 0:00:24]} 22. Nc3 {[%emt 0:00:26]} Bh6 {[%emt 0:01:24] Check Result:0.64} 23. Bxh6 {[%emt 0:05:10]} 1/2-1/2